fUST/lending_fUST_20250411
["ID","MTS","AMOUNT","RATE_DAILY","PERIOD"]
[357679690,1744317032932,-500.0,0.00016438,2]
[357679691,1744317032942,-500.0,0.00016438,2]
[357679692,1744317032951,-500.0,0.00016438,2]
[357679693,1744317032962,-500.0,0.00016438,2]
[357679694,1744317032972,-500.0,0.00016438,2]
[357679695,1744317032981,-500.0,0.00016438,2]
[357679696,1744317032992,-500.0,0.00016438,2]
[357679697,1744317033002,-500.0,0.00016438,2]
[357679698,1744317033011,-500.0,0.00016438,2]
[357679699,1744317033022,-500.0,0.00016438,2]
[357679700,1744317033033,-500.0,0.00016438,2]
[357679701,1744317033043,-500.0,0.00016438,2]
[357679702,1744317033054,-500.89800163,0.00016438,2]
[357679703,1744317033064,-151.0,0.00016438,2]
[357679704,1744317033075,-151.0,0.00016438,2]
[357679705,1744317033088,-151.0,0.00016438,2]
[357679706,1744317033098,-500.0,0.00016438,2]
[357679707,1744317033108,-261.463872,0.00016438,2]
[357679708,1744317033119,-999.33,0.00016438,2]
[357679709,1744317033129,-500.0,0.00016438,2]
[357679710,1744317033140,-500.0,0.00016438,2]
[357679711,1744317033151,-500.0,0.00016438,2]
[357679712,1744317033161,-758.96,0.00016438,2]
[357679713,1744317033171,-500.0,0.00016438,2]
[357679714,1744317033181,-500.0,0.00016438,2]
[357679715,1744317033192,-500.0,0.00016438,2]
[357679716,1744317033202,-501.8189915,0.00016438,2]
[357679717,1744317033212,-500.0,0.00016438,2]
[357679718,1744317033222,-500.0,0.00016438,2]
[357679719,1744317033232,-500.0,0.00016438,2]
[357679720,1744317033243,-500.0,0.00016438,2]
[357679721,1744317033253,-511.01452945,0.00016438,2]
[357679722,1744317033263,-495.5349,0.00016438,2]
[357679723,1744317033274,-559.45,0.00016438,2]
[357679724,1744317033284,-500.0,0.00016438,2]
[357679725,1744317033294,-500.0,0.00016438,2]
[357679726,1744317033304,-500.0,0.00016438,2]
[357679727,1744317033315,-500.0,0.00016438,2]
[357679728,1744317033325,-500.0,0.00016438,2]
[357679729,1744317033336,-500.0,0.00016438,2]
[357679730,1744317033347,-500.0,0.00016438,2]
[357679731,1744317033357,-503.49775419,0.00016438,2]
[357679732,1744317033367,-1574.65,0.00016438,2]
[357679733,1744317033376,-1000.0,0.00016438,2]
[357679734,1744317033386,-500.0,0.00016438,2]
[357679735,1744317033396,-500.0,0.00016438,2]
[357679736,1744317033406,-500.0,0.00016438,2]
[357679737,1744317033416,-500.0,0.00016438,2]
[357679738,1744317033425,-500.0,0.00016438,2]
[357679739,1744317033435,-500.0,0.00016438,2]
[357679740,1744317033445,-532.333079,0.00016438,2]
[357679741,1744317033455,-500.0,0.00016438,2]
[357679742,1744317033465,-500.0,0.00016438,2]
[357679743,1744317033475,-500.0,0.00016438,2]
[357679744,1744317033485,-519.06061998,0.00016438,2]
[357679745,1744317033495,-505.98064981,0.00016438,2]
[357679746,1744317033505,-500.0,0.00016438,2]
[357679747,1744317033515,-620.9,0.00016438,2]
[357679748,1744317033525,-500.0,0.00016438,2]
[357679749,1744317033536,-500.0,0.00016438,2]
[357679750,1744317033545,-777.84,0.00016438,2]
[357679751,1744317033555,-521.95409833,0.00016438,2]
[357679752,1744317033565,-513.9926207,0.00016438,2]
[357679753,1744317033575,-500.0,0.00016438,2]
[357679754,1744317033586,-500.0,0.00016438,2]
[357679755,1744317033596,-500.0,0.00016438,2]
[357679756,1744317033605,-500.0,0.00016438,2]
[357679757,1744317033616,-503.73341442,0.00016438,2]
[357679758,1744317033629,-1136.37,0.00016438,2]
[357679759,1744317033639,-447.10643545,0.00016438,2]
[357679760,1744317033649,-500.0,0.00016438,2]
[357679761,1744317033659,-1000.0,0.00016438,2]
[357679762,1744317033671,-500.0,0.00016438,2]
[357679763,1744317033681,-513.32450694,0.00016438,2]
[357679764,1744317033690,-231.83293949,0.00016438,2]
[357679765,1744317033717,-273.883469,0.00016438,2]
[357679766,1744317033727,-500.0,0.00016438,2]
[357679767,1744317033737,-500.0,0.00016438,2]
[357679768,1744317033746,-500.0,0.00016438,2]
[357679769,1744317033756,-572.74,0.00016438,2]
[357679770,1744317033766,-521.11447388,0.00016438,2]
[357679771,1744317033777,-500.0,0.00016438,2]
[357679772,1744317033786,-552.87264105,0.00016438,2]
[357679773,1744317033797,-500.0,0.00016438,2]
[357679774,1744317033807,-500.0,0.00016438,2]
[357679775,1744317033817,-500.0,0.00016438,2]
[357679776,1744317033827,-500.0,0.00016438,2]
[357679777,1744317033838,-500.0,0.00016438,2]
[357679778,1744317033849,-500.0,0.00016438,2]
[357679779,1744317033860,-500.0,0.00016438,2]
[357679780,1744317033870,-500.0,0.00016438,2]
[357679781,1744317033880,-500.0,0.00016438,2]
[357679782,1744317033890,-675.47,0.00016438,2]
[357679783,1744317033900,-500.0,0.00016438,2]
[357679784,1744317033911,-468.90025533,0.00016438,2]
[357679785,1744317033921,-500.0,0.00016438,2]
[357679786,1744317033931,-500.0,0.00016438,2]
[357679787,1744317033941,-500.0,0.00016438,2]
[357679788,1744317033952,-500.0,0.00016438,2]
[357679789,1744317033962,-500.0,0.00016438,2]
[357679790,1744317033972,-500.0,0.00016438,2]
[357679791,1744317033983,-511.37737336,0.00016438,2]
[357679792,1744317033994,-500.0,0.00016438,2]
[357679793,1744317034004,-725.61,0.00016438,2]
[357679794,1744317034014,-500.0,0.00016438,2]
[357679795,1744317034024,-500.0,0.00016438,2]
[357679796,1744317034034,-500.0,0.00016438,2]
[357679797,1744317034044,-500.0,0.00016438,2]
[357679798,1744317034054,-500.0,0.00016438,2]
[357679799,1744317034064,-500.0,0.00016438,2]
[357679800,1744317034075,-500.0,0.00016438,2]
[357679801,1744317034086,-500.0,0.00016438,2]
[357679802,1744317034096,-500.0,0.00016438,2]
[357679803,1744317034106,-516.94642719,0.00016438,2]
[357679804,1744317034115,-500.0,0.00016438,2]
[357679805,1744317034125,-1212.51,0.00016438,2]
[357679806,1744317034134,-500.0,0.00016438,2]
[357679807,1744317034144,-500.0,0.00016438,2]
[357679808,1744317034154,-505.49626665,0.00016438,2]
[357679809,1744317034164,-500.0,0.00016438,2]
[357679810,1744317034174,-1492.22,0.00016438,2]
[357679811,1744317034184,-511.71757186,0.00016438,2]
[357679812,1744317034195,-662.09,0.00016438,2]
[357679813,1744317034205,-329.94575525,0.00016438,2]
[357679814,1744317034216,-501.61,0.00016438,2]
[357679815,1744317034226,-500.0,0.00016438,2]
[357679816,1744317034237,-500.0,0.00016438,2]
[357679817,1744317034247,-521.06,0.00016438,2]
[357679818,1744317034257,-500.0,0.00016438,2]
[357679819,1744317034267,-500.0,0.00016438,2]
[357679820,1744317034277,-500.0,0.00016438,2]
[357679821,1744317034287,-500.0,0.00016438,2]
[357679822,1744317034297,-539.08,0.00016438,2]
[357679823,1744317034307,-500.0,0.00016438,2]
[357679824,1744317034318,-1228.31,0.00016438,2]
[357679825,1744317034328,-503.03567306,0.00016438,2]
[357679826,1744317034338,-504.25975349,0.00016438,2]
[357679827,1744317034349,-500.0,0.00016438,2]
[357679828,1744317034359,-1008.15,0.00016438,2]
[357679829,1744317034368,-502.41258668,0.00016438,2]
[357679830,1744317034378,-500.0,0.00016438,2]
[357679831,1744317034388,-500.0,0.00016438,2]
[357679832,1744317034398,-441.70896396,0.00016438,2]
[357679833,1744317034408,-500.0,0.00016438,2]
[357679834,1744317034418,-443.42675822,0.00016438,2]
[357679835,1744317034433,-56.57324178,0.00016438,2]
[357679836,1744317034443,-500.0,0.00016438,2]
[357679837,1744317034453,-500.0,0.00016438,2]
[357679838,1744317034462,-500.0,0.00016438,2]
[357679839,1744317034472,-500.0,0.00016438,2]
[357679840,1744317034482,-500.0,0.00016438,2]
[357679841,1744317034491,-500.0,0.00016438,2]
[357679842,1744317034501,-500.0,0.00016438,2]
[357679843,1744317034511,-730.25,0.00016438,2]
[357679844,1744317034521,-480.93401363,0.00016438,2]
[357679845,1744317034530,-522.54,0.00016438,2]
[357679846,1744317034540,-734.84,0.00016438,2]
[357679847,1744317034550,-674.1,0.00016438,2]
[357679848,1744317034559,-384.65672219,0.00016438,2]
[357679867,1744317038592,-419.64641374,0.00016356,2]
[357679868,1744317038602,-115.34327781,0.00016438,2]
[357679869,1744317038612,-500.0,0.00016438,2]
[357679870,1744317038623,-70.37967952,0.00016438,2]
[357679871,1744317038639,-429.62032048,0.00016438,2]
[357679872,1744317038649,-256.92130383,0.00016438,2]
[357679894,1744317040377,-500.0,0.00016065,2]
[357679895,1744317040388,-389.50751783,0.00016065,2]
[357679896,1744317040398,-694.94869617,0.00016438,2]
[357679897,1744317040407,-799.14,0.00016438,2]
[357679898,1744317040417,-500.0,0.00016438,2]
[357679899,1744317040427,-1878.15,0.00016438,2]
[357679900,1744317040436,-12.08568052,0.00016438,2]
[357679901,1744317040448,-487.91431948,0.00016438,2]
[357679902,1744317040458,-500.0,0.00016438,2]
[357679903,1744317040468,-913.88,0.00016438,2]
[357679904,1744317040478,-500.0,0.00016438,2]
[357679905,1744317040487,-1180.03,0.00016438,2]
[357679906,1744317040497,-785.4,0.00016438,2]
[357679907,1744317040507,-761.99,0.00016438,2]
[357679908,1744317040516,-1213.75,0.00016438,2]
[357679909,1744317040526,-500.0,0.00016438,2]
[357679910,1744317040535,-500.0,0.00016438,2]
[357679911,1744317040545,-500.0,0.00016438,2]
[357679912,1744317040554,-1157.23,0.00016438,2]
[357679913,1744317040563,-852.39,0.00016438,2]
[357679914,1744317040573,-826.68,0.00016438,2]
[357679915,1744317040582,-500.0,0.00016438,2]
[357679916,1744317040591,-500.0,0.00016438,2]
[357679917,1744317040602,-500.0,0.00016438,2]
[357679918,1744317040611,-500.0,0.00016438,2]
[357679919,1744317040622,-500.0,0.00016438,2]
[357679920,1744317040633,-500.0,0.00016438,2]
[357679921,1744317040643,-500.0,0.00016438,2]
[357679922,1744317040652,-260.13257563,0.00016438,2]
[357679923,1744317040663,-703.46,0.00016438,2]
[357679924,1744317040673,-151.0,0.00016438,2]
[357679925,1744317040682,-500.0,0.00016438,2]
[357679926,1744317040692,-152.486814,0.00016438,2]
[357679927,1744317040704,-119.67474793,0.00016438,2]
[357679947,1744317043087,-380.32525207,0.00016438,2]
[357679948,1744317043097,-500.0,0.00016438,2]
[357679949,1744317043106,-500.0,0.00016438,2]
[357679950,1744317043116,-502.96052516,0.00016438,2]
[357679951,1744317043126,-500.0,0.00016438,2]
[357679952,1744317043135,-384.31777189,0.00016438,2]
[357679953,1744317043147,-115.68222811,0.00016438,2]
[357679954,1744317043157,-581.2417316,0.00016438,2]
[357679955,1744317043167,-500.0,0.00016438,2]
[357679956,1744317043177,-780.3,0.00016438,2]
[357679957,1744317043186,-500.0,0.00016438,2]
[357679958,1744317043196,-151.0,0.00016438,2]
[357679959,1744317043206,-151.0,0.00016438,2]
[357679960,1744317043216,-500.0,0.00016438,2]
[357679961,1744317043226,-556.04,0.00016438,2]
[357679963,1744317043235,-720.28,0.00016438,2]
[357679964,1744317043244,-500.0,0.00016438,2]
[357679965,1744317043254,-320.45604029,0.00016438,2]
[357679966,1744317043266,-179.54395971,0.00016438,2]
[357679967,1744317043275,-120.53021995,0.00016438,2]
[357679968,1744317043303,-710.46978005,0.00016438,2]
[357679969,1744317043312,-500.0,0.00016438,2]
[357679970,1744317043322,-654.02,0.00016438,2]
[357679971,1744317043331,-500.0,0.00016438,2]
[357679972,1744317043341,-500.0,0.00016438,2]
[357679973,1744317043351,-633.51022195,0.00016438,2]
[357680017,1744317046146,-165.21977805,0.00016438,2]
[357680018,1744317046156,-662.14,0.00016438,2]
[357680019,1744317046166,-670.03,0.00016438,2]
[357680020,1744317046176,-481.08504178,0.00016438,2]
[357680021,1744317046186,-500.0,0.00016438,2]
[357680022,1744317046195,-500.0,0.00016438,2]
[357680023,1744317046205,-500.0,0.00016438,2]
[357680024,1744317046215,-500.0,0.00016438,2]
[357680025,1744317046225,-500.0,0.00016438,2]
[357680026,1744317046234,-500.0,0.00016438,2]
[357680027,1744317046244,-500.0,0.00016438,2]
[357680028,1744317046254,-500.0,0.00016438,2]
[357680029,1744317046264,-500.0,0.00016438,2]
[357680030,1744317046273,-500.0,0.00016438,2]
[357680031,1744317046283,-500.0,0.00016438,2]
[357680032,1744317046293,-551.95,0.00016438,2]
[357680034,1744317046303,-500.0,0.00016438,2]
[357680035,1744317046312,-1171.85,0.00016438,2]
[357680036,1744317046322,-541.63,0.00016438,2]
[357680037,1744317046332,-500.0,0.00016438,2]
[357680038,1744317046341,-500.0,0.00016438,2]
[357680039,1744317046351,-500.0,0.00016438,2]
[357680040,1744317046360,-211.49034878,0.00016438,2]
[357680041,1744317046370,-167.93206401,0.00016438,2]
[357680042,1744317046383,-332.06793599,0.00016438,2]
[357680043,1744317046392,-72.53975619,0.00016438,2]
[357680044,1744317107715,250.0,0.00014907,2]
[357680045,1744317124758,250.0,0.00014907,2]
[357680046,1744317267666,250.0,0.00014995,2]
[357680048,1744317411342,250.0,0.00014993,2]
[357680087,1744317527359,250.0,0.00014993,2]
[357680105,1744317671162,250.0,0.00014991,2]
[357680131,1744317727297,-696.09806958,0.00015032,2]
[357680142,1744317814735,250.0,0.00014971,2]
[357680143,1744317923224,-186.4443479,0.00015032,2]
[357680144,1744317958298,250.0,0.00014968,2]
[357680145,1744317993659,-500.0,0.00015031,2]
[357680146,1744318023010,-157.93148628,0.0001503,2]
[357680153,1744318043365,-142.06851372,0.0001503,2]
[357680154,1744318043389,-107.93148628,0.00015031,2]
[357680167,1744318080907,250.0,0.00014968,2]
[357680168,1744318083758,-250.0,0.0001503,2]
[357680169,1744318144110,-300.0,0.00015029,2]
[357680170,1744318224754,250.0,0.00014931,2]
[357680195,1744318232229,-534.90610227,0.0001503,2]
[357680196,1744318232250,-190.57897915,0.0001503,2]
[357680198,1744318232273,-500.0,0.0001503,2]
[357680200,1744318232294,-500.0,0.0001503,2]
[357680201,1744318232303,-500.0,0.0001503,2]
[357680202,1744318232314,-500.0,0.0001503,2]
[357680203,1744318232324,-381.86872755,0.0001503,2]
[357680204,1744318232334,-500.0,0.0001503,2]
[357680206,1744318232343,-500.0,0.0001503,2]
[357680207,1744318232354,-523.24328914,0.0001503,2]
[357680208,1744318232363,-500.0,0.0001503,2]
[357680209,1744318232373,-500.0,0.0001503,2]
[357680210,1744318232382,-500.0,0.0001503,2]
[357680211,1744318232392,-500.0,0.0001503,2]
[357680212,1744318232401,-1105.75142041,0.00015032,2]
[357680213,1744318232410,-4454.52773658,0.00015072,2]
[357680214,1744318232426,-322.94814461,0.00015072,2]
[357680215,1744318232438,-293.61015655,0.00015072,2]
[357680216,1744318232450,-12472.86020462,0.00015072,2]
[357680217,1744318232460,-500.0,0.00015072,2]
[357680218,1744318232469,-209.90267934,0.00015072,2]
[357680219,1744318232479,-500.0,0.00015072,2]
[357680220,1744318232489,-547.61838828,0.00015072,2]
[357680221,1744318232499,-24900.0,0.00015073,2]
[357680222,1744318232508,-524.1766176,0.00015132,2]
[357680223,1744318232518,-1105.75142039,0.00016001,2]
[357680224,1744318232528,-419.64641374,0.00016068,2]
[357680225,1744318232538,-160.0,0.0001607,2]
[357680226,1744318232547,-169.72305368,0.00016272,2]
[357680227,1744318232558,-32546.53739404,0.00016338,2]
[357680228,1744318232567,-169.72305368,0.00016338,2]
[357680229,1744318232577,-152.0,0.00016338,2]
[357680230,1744318232587,-12536.72526453,0.00016368,2]
[357680231,1744318232596,-837.80299543,0.00016368,2]
[357680232,1744318232606,-160.0,0.00016368,2]
[357680233,1744318232616,-1098.3,0.000164,2]
[357680234,1744318232625,-200.0,0.00016428,2]
[357680235,1744318232635,-151.0,0.00016428,2]
[357680236,1744318232644,-151.0,0.00016428,2]
[357680237,1744318232654,-151.0,0.00016428,2]
[357680238,1744318232664,-151.0,0.00016428,2]
[357680239,1744318232673,-297.98280144,0.00016428,2]
[357680240,1744318232682,-837.80299543,0.00016438,3]
[357680241,1744318232691,-10454.76285041,0.00016438,2]
[357680242,1744318232706,-11524.135338,0.00016438,3]
[357680243,1744318232726,-12536.72526453,0.00016438,3]
[357680244,1744318232748,-500.0,0.00016438,2]
[357680245,1744318232770,-500.0,0.00016438,2]
[357680246,1744318232792,-500.0,0.00016438,2]
[357680247,1744318232813,-500.0,0.00016438,2]
[357680248,1744318232835,-500.0,0.00016438,2]
[357680249,1744318232856,-500.0,0.00016438,2]
[357680250,1744318232877,-500.0,0.00016438,2]
[357680251,1744318232899,-500.0,0.00016438,2]
[357680252,1744318232908,-528.95,0.00016438,2]
[357680253,1744318232918,-493.21965918,0.00016438,2]
[357680255,1744318238451,-39.65034082,0.00016438,2]
[357680256,1744318238462,-227.09221848,0.00016438,2]
[357680268,1744318240482,-272.90778152,0.00016438,2]
[357680271,1744318240494,-765.45,0.00016438,2]
[357680273,1744318240504,-500.0,0.00016438,2]
[357680275,1744318240513,-622.08,0.00016438,2]
[357680277,1744318240525,-500.0,0.00016438,2]
[357680279,1744318240534,-500.0,0.00016438,2]
[357680281,1744318240544,-500.0,0.00016438,2]
[357680283,1744318240555,-429.09493037,0.00016438,2]
[357680285,1744318240564,-445.46111987,0.00016438,2]
[357680287,1744318240574,-705.87,0.00016438,2]
[357680289,1744318240584,-500.0,0.00016438,2]
[357680291,1744318240593,-500.0,0.00016438,2]
[357680293,1744318240603,-500.0,0.00016438,2]
[357680295,1744318240613,-882.69,0.00016438,2]
[357680297,1744318240623,-500.0,0.00016438,2]
[357680299,1744318240633,-500.0,0.00016438,2]
[357680302,1744318240643,-500.0,0.00016438,2]
[357680304,1744318240652,-504.17301784,0.00016438,2]
[357680306,1744318240662,-500.0,0.00016438,2]
[357680308,1744318240672,-500.0,0.00016438,2]
[357680310,1744318240681,-507.08,0.00016438,2]
[357680312,1744318240691,-500.0,0.00016438,2]
[357680314,1744318240700,-500.0,0.00016438,2]
[357680316,1744318240711,-500.0,0.00016438,2]
[357680318,1744318240721,-401.26524756,0.00016438,2]
[357680320,1744318240730,-500.0,0.00016438,2]
[357680322,1744318240740,-1306.25,0.00016438,2]
[357680324,1744318240750,-749.26,0.00016438,2]
[357680326,1744318240760,-500.0,0.00016438,2]
[357680329,1744318240770,-500.0,0.00016438,2]
[357680331,1744318240779,-500.0,0.00016438,2]
[357680333,1744318240789,-581.85,0.00016438,2]
[357680335,1744318240798,-500.0,0.00016438,2]
[357680337,1744318240808,-500.0,0.00016438,2]
[357680339,1744318240817,-500.0,0.00016438,2]
[357680341,1744318240827,-500.0,0.00016438,2]
[357680343,1744318240837,-500.0,0.00016438,2]
[357680345,1744318240847,-500.0,0.00016438,2]
[357680347,1744318240857,-501.75618186,0.00016438,2]
[357680349,1744318240866,-500.0,0.00016438,2]
[357680351,1744318240876,-500.0,0.00016438,2]
[357680353,1744318240886,-500.0,0.00016438,2]
[357680355,1744318240896,-500.0,0.00016438,2]
[357680357,1744318240906,-500.0,0.00016438,2]
[357680359,1744318240916,-500.0,0.00016438,2]
[357680362,1744318240926,-500.0,0.00016438,2]
[357680364,1744318240936,-151.0,0.00016438,2]
[357680366,1744318240945,-151.0,0.00016438,2]
[357680368,1744318240955,-151.0,0.00016438,2]
[357680370,1744318240965,-151.0,0.00016438,2]
[357680372,1744318240975,-500.0,0.00016438,2]
[357680374,1744318240984,-518.50277938,0.00016438,2]
[357680376,1744318240994,-300.0,0.00016438,2]
[357680378,1744318241005,-500.0,0.00016438,2]
[357680380,1744318241016,-500.0,0.00016438,2]
[357680382,1744318241026,-500.0,0.00016438,2]
[357680384,1744318241036,-507.05567011,0.00016438,2]
[357680386,1744318241047,-500.0,0.00016438,2]
[357680388,1744318241057,-500.0,0.00016438,2]
[357680390,1744318241066,-500.0,0.00016438,2]
[357680392,1744318241076,-500.0,0.00016438,2]
[357680394,1744318241086,-500.0,0.00016438,2]
[357680396,1744318241096,-507.48,0.00016438,2]
[357680398,1744318241106,-500.0,0.00016438,2]
[357680400,1744318241116,-500.0,0.00016438,2]
[357680402,1744318241125,-500.0,0.00016438,2]
[357680404,1744318241136,-500.0,0.00016438,2]
[357680406,1744318241146,-500.0,0.00016438,2]
[357680408,1744318241155,-500.0,0.00016438,2]
[357680410,1744318241166,-500.0,0.00016438,2]
[357680412,1744318241176,-278.78921094,0.00016438,2]
[357680414,1744318241185,-557.45155162,0.00016438,2]
[357680417,1744318241195,-500.0,0.00016438,2]
[357680419,1744318241205,-500.0,0.00016438,2]
[357680421,1744318241215,-500.0,0.00016438,2]
[357680423,1744318241225,-1216.96,0.00016438,2]
[357680425,1744318241235,-500.0,0.00016438,2]
[357680427,1744318241246,-151.0,0.00016438,2]
[357680429,1744318241255,-634.5,0.00016438,2]
[357680431,1744318241266,-630.6,0.00016438,2]
[357680433,1744318241276,-500.0,0.00016438,2]
[357680435,1744318241286,-500.0,0.00016438,2]
[357680437,1744318241296,-500.0,0.00016438,2]
[357680439,1744318241305,-500.0,0.00016438,2]
[357680441,1744318241315,-1643.22,0.00016438,2]
[357680443,1744318241325,-500.0,0.00016438,2]
[357680445,1744318241335,-500.0,0.00016438,2]
[357680447,1744318241344,-500.0,0.00016438,2]
[357680449,1744318241354,-500.0,0.00016438,2]
[357680451,1744318241364,-704.22,0.00016438,2]
[357680453,1744318241373,-500.0,0.00016438,2]
[357680455,1744318241382,-500.0,0.00016438,2]
[357680458,1744318241392,-765.85,0.00016438,2]
[357680460,1744318241401,-525.2296347,0.00016438,2]
[357680462,1744318241412,-500.0,0.00016438,2]
[357680465,1744318241431,-500.0,0.00016438,2]
[357680467,1744318241446,-647.79,0.00016438,2]
[357680470,1744318241456,-500.0,0.00016438,2]
[357680472,1744318241466,-500.0,0.00016438,2]
[357680474,1744318241476,-500.0,0.00016438,2]
[357680476,1744318241486,-500.0,0.00016438,2]
[357680478,1744318241496,-500.0,0.00016438,2]
[357680480,1744318241506,-500.0,0.00016438,2]
[357680482,1744318241516,-500.0,0.00016438,2]
[357680484,1744318241526,-500.0,0.00016438,2]
[357680486,1744318241536,-2030.15,0.00016438,2]
[357680488,1744318241546,-500.0,0.00016438,2]
[357680491,1744318241556,-500.0,0.00016438,2]
[357680493,1744318241566,-500.0,0.00016438,2]
[357680495,1744318241576,-500.0,0.00016438,2]
[357680497,1744318241586,-500.0,0.00016438,2]
[357680499,1744318241595,-183.51687587,0.00016438,2]
[357680501,1744318241605,-500.0,0.00016438,2]
[357680503,1744318241615,-500.0,0.00016438,2]
[357680505,1744318241625,-474.97157341,0.00016438,2]
[357680507,1744318241635,-500.0,0.00016438,2]
[357680509,1744318241645,-796.38,0.00016438,2]
[357680511,1744318241655,-500.0,0.00016438,2]
[357680513,1744318241664,-502.92606706,0.00016438,2]
[357680515,1744318241674,-500.0,0.00016438,2]
[357680517,1744318241683,-500.0,0.00016438,2]
[357680520,1744318241693,-500.0,0.00016438,2]
[357680522,1744318241703,-500.0,0.00016438,2]
[357680524,1744318241714,-500.0,0.00016438,2]
[357680526,1744318241724,-500.0,0.00016438,2]
[357680528,1744318241733,-500.0,0.00016438,2]
[357680530,1744318241743,-460.45793347,0.00016438,2]
[357680532,1744318241753,-747.79,0.00016438,2]
[357680556,1744318241966,-500.0,0.00016438,2]
[357680559,1744318241982,-500.0,0.00016438,2]
[357680561,1744318241992,-500.0,0.00016438,2]
[357680563,1744318242004,-1605.55,0.00016438,2]
[357680565,1744318242014,-500.0,0.00016438,2]
[357680567,1744318242025,-500.0,0.00016438,2]
[357680569,1744318242035,-500.0,0.00016438,2]
[357680571,1744318242047,-500.0,0.00016438,2]
[357680573,1744318242058,-570.27,0.00016438,2]
[357680576,1744318242068,-500.0,0.00016438,2]
[357680578,1744318242079,-1557.78,0.00016438,2]
[357680580,1744318242090,-919.99,0.00016438,2]
[357680582,1744318242100,-637.07,0.00016438,2]
[357680584,1744318242110,-500.0,0.00016438,2]
[357680586,1744318242120,-500.0,0.00016438,2]
[357680588,1744318242130,-557.54762033,0.00016438,2]
[357680590,1744318242139,-1219.45,0.00016438,2]
[357680592,1744318242150,-565.43,0.00016438,2]
[357680594,1744318242159,-520.44516626,0.00016438,2]
[357680596,1744318242169,-500.0,0.00016438,2]
[357680598,1744318242180,-500.0,0.00016438,2]
[357680600,1744318242190,-500.0,0.00016438,2]
[357680602,1744318242200,-967.08,0.00016438,2]
[357680604,1744318242210,-2918.57,0.00016438,2]
[357680607,1744318242220,-500.0,0.00016438,2]
[357680609,1744318242229,-500.0,0.00016438,2]
[357680611,1744318242239,-500.0,0.00016438,2]
[357680613,1744318242250,-500.0,0.00016438,2]
[357680615,1744318242259,-500.0,0.00016438,2]
[357680617,1744318242269,-500.0,0.00016438,2]
[357680618,1744318242279,-500.0,0.00016438,2]
[357680619,1744318242288,-435.76500326,0.00016438,2]
[357680625,1744318242469,-2189.90499674,0.00016438,2]
[357680627,1744318242480,-586.04000001,0.00016438,2]
[357680629,1744318242490,-500.0,0.00016438,2]
[357680630,1744318242500,-500.0,0.00016438,2]
[357680631,1744318242510,-500.0,0.00016438,2]
[357680632,1744318242520,-500.0,0.00016438,2]
[357680633,1744318242530,-500.0,0.00016438,2]
[357680634,1744318242539,-500.0,0.00016438,2]
[357680635,1744318242550,-1401.52,0.00016438,2]
[357680636,1744318242560,-500.0,0.00016438,2]
[357680637,1744318242571,-500.0,0.00016438,2]
[357680638,1744318242581,-500.0,0.00016438,2]
[357680639,1744318242591,-500.0,0.00016438,2]